bitfinex/quotes_SOLUSD_20250722
["timestamp","ask_amount","ask_price","bid_price","bid_amount"]
[1753202142527,0.68,203.52,203.49,9.76226869]
[1753202142852,0.68,203.52,203.44,0.49]
[1753202142853,8.0146,203.53,203.5,0.4411765]
[1753202143033,0.68,203.51,203.5,0.4411765]
[1753202143233,8.0146,203.53,203.5,0.4411765]
[1753202143534,0.68,203.51,203.5,0.4411765]
[1753202143738,5.59376345,203.51,203.5,0.4411765]
[1753202145160,15.35603214,203.51,203.5,0.4411765]
[1753202146043,32.14071611,203.51,203.5,0.4411765]
[1753202147047,5.59376345,203.51,203.5,0.4411765]
[1753202147235,8.0146,203.53,203.5,10.20344519]
[1753202147448,0.66,203.54,203.5,0.4411765]
[1753202147644,0.66,203.53,203.51,9.76226869]
[1753202147863,0.66,203.52,203.5,0.4411765]
[1753202148160,0.66,203.51,203.5,0.4411765]
[1753202149450,0.66,203.51,203.5,10.20344519]
[1753202150142,0.66,203.51,203.5,0.4411765]
[1753202150552,5.57376345,203.51,203.5,0.4411765]
[1753202151865,5.5730392,203.54,203.5,10.20344519]
[1753202152043,0.66,203.53,203.5,0.4411765]
[1753202152245,4.9130392,203.54,203.5,0.4411765]
[1753202152453,0.66,203.52,203.5,0.4411765]
[1753202152964,5.57365139,203.52,203.5,0.4411765]
[1753202153942,0.66,203.51,203.5,0.4411765]
[1753202154343,4.91365139,203.52,203.5,0.4411765]
[1753202154564,5.57365139,203.52,203.5,0.4411765]
[1753202155069,0.66,203.52,203.5,10.20344519]
[1753202155262,4.91329765,203.53,203.5,0.4411765]
[1753202155941,5.63258965,203.56,203.52,9.76226869]
[1753202156279,0.66,203.55,203.5,0.4411765]
[1753202156457,9.76226869,203.54,203.5,0.4411765]
[1753202156770,0.66,203.53,203.5,0.4411765]
[1753202156972,0.66,203.52,203.5,0.4411765]
[1753202157183,9.76226869,203.51,203.5,0.4411765]
[1753202157392,10.42226869,203.51,203.5,0.4411765]
[1753202157582,0.66,203.51,203.5,0.4411765]
[1753202159084,5.57376345,203.51,203.5,0.4411765]
[1753202159384,15.33603214,203.51,203.5,0.4411765]
[1753202160064,32.12071611,203.51,203.5,1e-08]
[1753202160376,50.80688397,203.47,203.45,0.03]
[1753202160563,61.98695266,203.46,203.45,0.03]
[1753202160763,62.64695266,203.46,203.45,0.03]
[1753202161289,41.014971,203.46,203.45,0.03]
[1753202161492,67.56192366,203.46,203.45,1e-08]
[1753202161670,67.56192366,203.46,203.41,88.63]
[1753202161671,16.78468397,203.45,203.41,88.63]
[1753202161862,16.78468397,203.41,203.31,9.76226869]
[1753202162061,9.76226869,203.37,203.31,88.6]
[1753202162262,9.76226869,203.35,203.31,88.6]
[1753202162480,0.66,203.34,203.31,88.6]
[1753202162679,0.66,203.34,203.29,88.8]
[1753202163072,4.91811341,203.33,203.29,98.56226869]
[1753202163270,4.91811341,203.33,203.29,88.8]
[1753202164280,4.91811341,203.33,203.29,0.2]
[1753202164281,0.66,203.32,203.29,0.2]
[1753202164475,0.66,203.31,203.29,0.2]
[1753202164679,36.08,203.31,203.29,0.2]
[1753202166087,4.91883915,203.3,203.29,0.2]
[1753202166276,15.34110784,203.3,203.29,0.2]
[1753202166497,15.34110784,203.3,203.29,1e-08]
[1753202166498,32.12579181,203.3,203.29,1e-08]
[1753202166680,16.78468397,203.29,203.21,0.4318233]
[1753202166881,9.76226869,203.23,203.21,0.4318233]
[1753202167094,45.18226869,203.22,203.21,0.4318233]
[1753202167296,45.18226869,203.22,203.13,0.03]
[1753202167297,45.84226869,203.22,203.13,0.03]
[1753202167487,9.76226869,203.17,203.13,0.03]
[1753202167680,17.44468397,203.21,203.15,9.76226869]
[1753202167681,0.66,203.21,203.15,9.76226869]
[1753202167881,0.66,203.21,203.14,9.76226869]
[1753202167882,35.42,203.2,203.14,9.76226869]
[1753202168106,4.92150204,203.19,203.13,9.79226869]
[1753202168271,40.34126605,203.2,203.15,9.76226869]
[1753202168479,35.46,203.19,203.17,9.76226869]
[1753202168800,0.66,203.18,203.14,9.76226869]
[1753202170176,4.92167932,203.19,203.15,9.76226869]
[1753202170399,40.38137286,203.2,203.16,9.76226869]
[1753202170603,40.38137286,203.2,203.13,0.55]
[1753202170799,0.66,203.25,203.19,9.76226869]
[1753202170976,35.44,203.24,203.2,9.76226869]
[1753202171182,35.44,203.24,203.21,9.76226869]
[1753202171988,35.44,203.24,203.16,0.52]
[1753202172207,4.92053338,203.23,203.19,9.76226869]
[1753202172713,5.58053338,203.23,203.19,9.76226869]
[1753202173295,5.58053338,203.23,203.19,98.36226869]
[1753202173495,5.58053338,203.23,203.19,88.6]
[1753202173926,4.92053338,203.23,203.2,9.76226869]
[1753202174129,4.92053338,203.23,203.19,98.36226869]
[1753202174428,5.58053338,203.23,203.19,98.36226869]
[1753202174635,10.42226869,203.22,203.19,88.6]
[1753202174913,35.42,203.21,203.19,88.6]
[1753202175113,0.66,203.2,203.19,88.6]
[1753202175319,0.66,203.2,203.16,88.6]
[1753202175624,0.66,203.2,203.16,98.36226869]
[1753202176019,0.66,203.2,203.16,88.6]
[1753202176199,0.66,203.19,203.16,88.6]
[1753202176518,4.92174426,203.18,203.13,98.39226869]
[1753202176736,45.86226869,203.17,203.13,0.03]
[1753202177206,4.92077551,203.22,203.16,9.76226869]
[1753202177519,4.92077551,203.22,203.19,9.76226869]
[1753202178322,4.92053338,203.23,203.14,89.12]
[1753202178502,0.68,203.22,203.17,9.76226869]
[1753202178699,10.44226869,203.21,203.15,9.76226869]
[1753202178994,9.76226869,203.16,203.14,88.6]
[1753202179212,45.24226869,203.15,203.13,0.03]
[1753202179419,36.18,203.15,203.13,0.03]
[1753202179626,35.5,203.15,203.13,0.03]
[1753202180122,0.68,203.14,203.13,0.03]
[1753202180298,10.44226869,203.14,203.13,0.03]
[1753202180504,15.36498208,203.14,203.13,0.03]
[1753202181022,5.60271339,203.14,203.11,0.41647553]
[1753202181227,0.68,203.13,203.11,0.41647553]
[1753202181722,35.54,203.12,203.11,0.41647553]
[1753202182101,53.00468397,203.12,203.11,1e-08]
[1753202182302,45.98226869,203.12,203.08,0.03]
[1753202182507,4.92368291,203.1,203.08,0.03]
[1753202182722,35.54,203.11,203.08,9.79226869]
[1753202183313,35.54,203.11,203.09,9.76226869]
[1753202183835,35.54,203.11,203.08,0.55]
[1753202184042,35.54,203.11,203.1,9.76226869]
[1753202184230,35.52,203.15,203.1,10.28226869]
[1753202184537,55.087473,203.21,203.1,10.28226869]
[1753202184538,36.44226869,203.21,203.14,9.76226869]
[1753202184727,35.54,203.18,203.14,9.76226869]
[1753202185420,35.54,203.18,203.11,118.58]
[1753202185618,0.68,203.23,203.17,9.76226869]
[1753202185940,35.54,203.22,203.18,9.76226869]
[1753202186108,0.68,203.21,203.16,9.76226869]
[1753202186309,0.68,203.21,203.14,9.76226869]
[1753202186310,0.68,203.2,203.14,9.76226869]
[1753202186538,0.68,203.2,203.12,26.52]
[1753202186539,4.92150204,203.19,203.13,9.76226869]
[1753202186922,14.68377073,203.19,203.13,9.76226869]
[1753202187125,35.52,203.18,203.13,9.76226869]
[1753202189228,4.92198651,203.17,203.13,9.76226869]
[1753202189742,0.68,203.16,203.13,88.6]
[1753202189949,0.68,203.15,203.13,88.6]
[1753202190826,36.18,203.14,203.13,88.6]
[1753202191033,36.18,203.14,203.1,88.6]
[1753202191253,36.18,203.14,203.08,0.03]
[1753202191254,15.36522443,203.13,203.08,0.03]
[1753202191624,14.68522443,203.13,203.08,0.03]
[1753202191828,0.68,203.12,203.08,0.03]
[1753202192226,4.92295574,203.13,203.09,9.76226869]
[1753202192651,0.68,203.19,203.12,9.76226869]
[1753202192856,7.844,203.23,203.16,9.76226869]
[1753202192857,35.48,203.18,203.16,9.76226869]
[1753202193062,35.48,203.19,203.17,9.76226869]
[1753202193258,35.48,203.2,203.17,9.76226869]
[1753202193551,40.40127539,203.2,203.17,9.76226869]
[1753202193770,40.40127539,203.2,203.16,98.36226869]
[1753202194070,41.08127539,203.2,203.16,98.36226869]
[1753202194676,40.40127539,203.2,203.16,88.6]
[1753202194961,0.68,203.19,203.16,88.6]
[1753202195479,4.92154703,203.19,203.16,98.36226869]
[1753202195640,40.4012785,203.2,203.17,9.76226869]
[1753202196348,40.4012785,203.2,203.16,98.36226869]
[1753202196734,41.0812785,203.2,203.16,98.36226869]
[1753202197149,41.0812785,203.2,203.16,88.6]
[1753202197752,0.68,203.19,203.16,88.6]
[1753202198067,0.68,203.19,203.16,98.36226869]
[1753202198263,0.68,203.19,203.16,9.76226869]
[1753202199541,5.60165645,203.19,203.16,9.76226869]
[1753202199863,4.92165645,203.19,203.16,9.76226869]
[1753202200358,35.48,203.2,203.18,9.76226869]
[1753202200536,40.40129434,203.2,203.18,9.76226869]
[1753202200860,40.40129434,203.2,203.17,9.76226869]
[1753202201165,35.48,203.2,203.17,9.76226869]
[1753202201540,40.32104422,203.21,203.17,9.76226869]
[1753202201740,40.32104422,203.21,203.18,9.76226869]
[1753202202354,35.4,203.21,203.19,9.76226869]
[1753202202773,0.06,203.24,203.2,9.76226869]
[1753202202962,0.06,203.24,203.22,9.76226869]
[1753202203147,0.06,203.24,203.22,98.36226869]
[1753202203348,0.06,203.24,203.22,88.6]
[1753202203560,0.74,203.24,203.22,88.6]
[1753202203783,0.06,203.24,203.22,98.36226869]
[1753202204448,4.97932997,203.28,203.24,88.54]
[1753202204668,35.48,203.28,203.27,9.76226869]
[1753202204868,40.3993231,203.28,203.27,88.54]
[1753202205278,50.84159179,203.28,203.27,88.54]
[1753202205656,63.13989954,203.28,203.21,88.54]
[1753202205971,10.44226869,203.27,203.21,88.54]
[1753202206168,10.44226869,203.26,203.21,88.54]
[1753202206352,35.42,203.25,203.21,88.54]
[1753202206553,0.68,203.24,203.21,88.54]
[1753202207074,0.68,203.23,203.21,88.54]
[1753202207271,35.42,203.22,203.21,88.54]
[1753202207571,41.04077551,203.22,203.18,88.54]
[1753202207771,50.1030442,203.22,203.18,88.54]
[1753202207950,0.7,203.21,203.18,88.54]
[1753202208491,0.7,203.2,203.18,88.54]
[1753202208680,45.16226869,203.19,203.1,90.1741]
[1753202208982,45.16226869,203.19,203.07,0.03]
[1753202208983,9.76226869,203.12,203.07,0.03]
[1753202209154,45.16226869,203.12,203.07,0.03]
[1753202209345,36.1,203.12,203.07,0.03]
[1753202209577,4.9234405,203.11,203.07,0.03]
[1753202209988,0.7,203.1,203.07,0.03]
[1753202210188,45.16226869,203.09,203.07,0.03]
[1753202210403,45.86226869,203.09,203.07,0.03]
[1753202210791,36.1,203.09,203.07,0.03]
[1753202211488,35.4,203.09,203.07,0.03]
[1753202212184,40.32392535,203.09,203.07,0.03]
[1753202212378,35.4,203.09,203.07,0.03]
[1753202212579,35.4,203.09,203.08,9.79226869]
[1753202212766,4.92248824,203.15,203.08,10.31226869]
[1753202212969,4.92248824,203.15,203.13,9.76226869]
[1753202212970,40.30248824,203.15,203.13,9.76226869]
[1753202213583,35.38,203.15,203.13,9.76226869]
[1753202213887,35.38,203.15,203.1,4.92358549]
[1753202213888,35.38,203.15,203.14,9.76226869]
[1753202214294,35.38,203.15,203.13,9.76226869]
[1753202214692,40.30256006,203.15,203.13,9.76226869]
[1753202215191,40.30256006,203.15,203.13,98.30226869]
[1753202215982,35.38,203.15,203.14,9.76226869]
[1753202216184,35.38,203.17,203.14,98.82226869]
[1753202216386,35.38,203.17,203.16,9.76226869]
[1753202216690,40.30077551,203.22,203.16,9.76226869]
[1753202216878,40.30077551,203.22,203.2,9.76226869]
[1753202217401,35.38,203.22,203.2,9.76226869]
[1753202217567,35.38,203.22,203.21,9.76226869]
[1753202217770,40.30077551,203.22,203.2,9.76226869]
[1753202218280,40.30077551,203.22,203.15,149.92]
[1753202218281,40.30077551,203.22,203.19,9.76226869]
[1753202219080,0.7,203.21,203.19,9.76226869]
[1753202219286,52.60271429,203.22,203.15,114.54]
[1753202219488,0.7,203.21,203.15,98.30226869]
[1753202219664,35.38,203.2,203.15,98.30226869]
[1753202220276,4.92150204,203.19,203.16,9.76226869]
[1753202220905,4.92150204,203.19,203.15,88.54]
[1753202221099,0.7,203.18,203.15,88.54]
[1753202221265,35.38,203.17,203.15,98.30226869]
[1753202221473,35.38,203.17,203.14,9.76226869]
[1753202221669,35.38,203.17,203.12,98.30226869]
[1753202221876,0.7,203.16,203.1,9.76226869]
[1753202222292,4.92271339,203.14,203.08,88.57]
[1753202222596,35.38,203.13,203.08,98.33226869]
[1753202222981,36.08,203.13,203.08,98.33226869]
[1753202223575,35.38,203.13,203.09,10.28226869]
[1753202223771,36.08,203.13,203.08,98.33226869]
[1753202223972,10.46226869,203.12,203.08,0.03]
[1753202224382,0.7,203.11,203.08,0.03]
[1753202224703,35.38,203.1,203.08,0.03]
[1753202225684,35.38,203.09,203.08,9.79226869]
[1753202226389,35.38,203.09,203.08,0.03]
[1753202226597,40.30392535,203.09,203.08,0.03]
[1753202227204,41.00392535,203.09,203.08,0.03]
[1753202227811,40.30392535,203.09,203.08,0.03]
[1753202228302,35.38,203.09,203.08,0.03]
[1753202228523,40.30392535,203.09,203.08,0.03]
[1753202229681,41.00392535,203.09,203.08,0.03]
[1753202230797,41.00392535,203.09,203.07,0.03]
[1753202230798,50.76619404,203.09,203.07,0.03]
[1753202231104,10.46226869,203.08,203.07,0.03]
[1753202231800,35.38,203.08,203.07,0.03]
[1753202232336,4.92392535,203.09,203.07,0.03]
[1753202232528,35.38,203.08,203.07,0.03]
[1753202232726,40.30416781,203.08,203.07,0.03]
[1753202233108,41.00416781,203.08,203.07,0.03]
[1753202234628,0.7,203.12,203.07,88.63]
[1753202234827,35.38,203.11,203.07,88.63]
[1753202235335,0.7,203.1,203.07,88.63]
[1753202235632,35.38,203.09,203.07,88.63]
[1753202235945,5.62416781,203.08,203.07,88.63]
[1753202236240,4.92416781,203.08,203.07,88.63]
[1753202236618,5.62416781,203.08,203.07,88.63]
[1753202236806,15.3864365,203.08,203.07,88.63]
[1753202237007,15.3864365,203.08,203.07,0.03]
[1753202237745,40.30416781,203.08,203.07,0.03]
[1753202237917,40.99416781,203.08,203.07,0.03]
[1753202238511,40.30416781,203.08,203.07,0.03]
[1753202239940,40.99416781,203.08,203.07,0.03]
[1753202240144,40.30416781,203.08,203.07,0.03]
[1753202240646,42.78468397,203.07,203.06,0.03]
[1753202240822,35.38,203.07,203.06,0.03]
[1753202242020,40.3044103,203.07,203.06,0.03]
[1753202244349,50.75667899,203.07,203.06,1e-08]
[1753202245931,15.37667899,203.07,203.06,1e-08]
[1753202246226,4.92368291,203.1,203.06,98.3622687]
[1753202246531,35.38,203.09,203.06,98.3622687]
[1753202247034,35.38,203.09,203.06,88.60000001]
[1753202248318,0.06,203.13,203.08,9.76226869]
[1753202248526,0.06,203.13,203.12,39.28226869]
[1753202248940,0.06,203.13,203.12,39.80226869]
[1753202250346,0.06,203.13,203.12,10.28226869]
[1753202251027,35.58,203.13,203.1,9.76226869]
[1753202251243,35.58,203.13,203.09,9.76226869]
[1753202253235,40.50299909,203.13,203.11,9.76226869]
[1753202253430,40.50299909,203.13,203.11,88.6]
[1753202253649,10.45226869,203.12,203.09,88.6]
[1753202253949,9.76226869,203.11,203.09,88.6]
[1753202254149,36.19,203.1,203.09,88.6]
[1753202254451,50.8759516,203.1,203.09,88.6]
[1753202254625,50.8759516,203.1,203.06,1e-08]
[1753202254949,4.92368291,203.1,203.06,1e-08]
[1753202255150,35.5,203.09,203.06,1e-08]
[1753202255321,35.48,203.08,203.06,1e-08]
[1753202255935,36.17,203.07,203.06,1e-08]
[1753202256127,45.93226869,203.07,203.06,1e-08]
[1753202256335,41.0944103,203.07,203.06,1e-08]
[1753202257025,40.4044103,203.07,203.06,1e-08]
[1753202257225,41.0944103,203.07,203.06,1e-08]
[1753202257647,4.9244103,203.07,203.06,1e-08]
[1753202257856,40.4644103,203.07,203.06,1e-08]
[1753202258442,4.9244103,203.07,203.06,1e-08]
[1753202258637,40.4844103,203.07,203.06,1e-08]
[1753202259040,40.4844103,203.07,203.06,9.7622687]
[1753202259433,35.56,203.07,203.06,9.7622687]
[1753202260265,4.9231981,203.12,203.06,10.2822687]
[1753202260561,0.06,203.13,203.11,9.76226869]
[1753202260762,0.06,203.17,203.13,88.54]
[1753202260964,0.06,203.17,203.16,9.76226869]
[1753202261137,4.91980714,203.26,203.16,65.82922135]
[1753202261329,40.49980714,203.26,203.23,9.76226869]
[1753202261664,40.49980714,203.26,203.24,9.76226869]
[1753202261845,4.91980714,203.26,203.24,9.76226869]
[1753202262548,4.97956511,203.27,203.24,9.76226869]
[1753202263056,4.97956511,203.27,203.23,88.54]
[1753202263247,5.66956511,203.27,203.23,98.30226869]
[1753202264346,5.66956511,203.27,203.24,9.76226869]
[1753202264544,5.66956511,203.27,203.26,9.76226869]
[1753202264545,0.06,203.27,203.26,9.76226869]
[1753202264843,0.06,203.27,203.25,9.76226869]
[1753202265166,4.97960945,203.27,203.25,9.76226869]
[1753202265839,4.97960945,203.27,203.25,88.54]
[1753202266042,40.51960945,203.27,203.25,88.54]
[1753202266652,41.20960945,203.27,203.25,88.54]
[1753202268253,41.19960945,203.27,203.25,88.54]
[1753202268959,40.51960945,203.27,203.25,88.54]
[1753202269343,41.19960945,203.27,203.25,88.54]
[1753202270868,0.68,203.26,203.25,88.54]
[1753202271162,0.68,203.26,203.24,88.54]
[1753202271366,45.22226869,203.25,203.19,9.76226869]
[1753202271573,0.68,203.24,203.19,9.76226869]
[1753202271752,0.68,203.23,203.19,9.76226869]
[1753202271948,35.46,203.22,203.19,9.76226869]
[1753202272150,40.38096523,203.22,203.2,9.76226869]
[1753202272358,40.38096523,203.22,203.21,9.76226869]
[1753202272564,40.38096523,203.22,203.2,9.76226869]
[1753202272944,40.38096523,203.22,203.17,89.0]
[1753202273143,40.38096523,203.22,203.2,9.76226869]
[1753202274262,40.38096523,203.22,203.17,88.54]
[1753202274471,41.06096523,203.22,203.19,9.76226869]
[1753202275172,40.38096523,203.22,203.19,98.30226869]
[1753202277160,41.06096523,203.22,203.19,88.54]
[1753202277376,40.38096523,203.22,203.19,98.30226869]
[1753202279088,26.74,203.27,203.21,9.76226869]
[1753202279288,40.29980714,203.26,203.21,9.76226869]
[1753202279685,0.68,203.25,203.21,9.76226869]
[1753202279892,35.36,203.24,203.21,9.76226869]
[1753202280497,35.36,203.24,203.19,118.06]
[1753202280802,35.36,203.24,203.21,9.76226869]
[1753202281115,4.92053338,203.23,203.21,98.30226869]
[1753202282283,4.92053338,203.23,203.21,88.54]
[1753202282597,35.36,203.25,203.22,10.22226869]
[1753202282803,0.68,203.24,203.22,88.54]
[1753202283105,35.36,203.23,203.22,88.54]
[1753202283299,36.04,203.23,203.22,88.54]
[1753202284395,40.96053338,203.23,203.22,88.54]
[1753202288228,63.02413553,203.23,203.19,88.54]
[1753202288390,9.76226869,203.2,203.16,88.54]
[1753202288589,4.92174426,203.18,203.16,88.54]
[1753202288789,36.04,203.17,203.16,88.54]
[1753202289002,35.36,203.17,203.16,88.54]
[1753202289401,35.36,203.17,203.16,98.30226869]
[1753202289999,35.36,203.17,203.16,88.54]
[1753202290529,45.80226869,203.17,203.16,38.7169081]
[1753202290815,63.02922148,203.17,203.12,0.03]
[1753202291020,9.76226869,203.13,203.12,0.03]
[1753202291224,45.12226869,203.13,203.12,1e-08]
[1753202291612,45.80226869,203.13,203.12,1e-08]
[1753202291802,36.04,203.13,203.12,1e-08]
[1753202292817,50.72522443,203.13,203.12,1e-08]
[1753202293917,54.6226956,203.13,203.12,1e-08]
[1753202294931,50.72522443,203.13,203.12,1e-08]
[1753202295312,40.96295574,203.13,203.12,1e-08]
[1753202295511,50.72522443,203.13,203.12,1e-08]
[1753202296158,56.24082197,203.13,203.12,1e-08]
[1753202296535,26.0,203.1,203.06,1e-08]
[1753202296700,9.76226869,203.07,203.06,1e-08]
[1753202296901,50.06667899,203.07,203.06,1e-08]
[1753202297106,50.74667899,203.07,203.06,1e-08]
[1753202297308,40.3044103,203.07,203.06,1e-08]
[1753202297841,40.9944103,203.07,203.06,1e-08]
[1753202298001,50.75667899,203.07,203.06,1e-08]
[1753202299316,40.9944103,203.07,203.06,1e-08]
[1753202299512,4.9244103,203.07,203.06,9.7622687]
[1753202299726,4.9244103,203.07,203.06,10.2222687]
[1753202299727,35.38,203.07,203.06,10.2222687]
[1753202300448,35.38,203.07,203.06,9.7622687]
[1753202301646,40.3044103,203.07,203.06,9.7622687]
[1753202302851,40.3044103,203.07,203.06,38.71690811]
[1753202303138,40.3044103,203.07,203.06,48.4791768]
[1753202303939,35.38,203.07,203.06,48.4791768]
[1753202304451,50.06667899,203.07,203.06,38.71690811]
[1753202304660,50.75667899,203.07,203.04,0.03]
[1753202304825,9.76226869,203.05,203.04,0.03]
[1753202305023,45.14226869,203.05,203.04,0.03]
[1753202305244,42.18251473,203.05,203.04,0.03]
[1753202305456,47.10741007,203.05,203.02,0.40271838]
[1753202305763,6.80251473,203.04,203.02,0.40271838]
[1753202305924,35.38,203.03,203.02,0.40271838]
[1753202306125,4.92489534,203.05,203.02,0.40271839]
[1753202306330,4.92489534,203.05,203.01,6.14251473]
[1753202306331,6.11251473,203.03,203.01,0.03]
[1753202306658,26.0,203.0,202.99,1e-08]
[1753202306822,0.69,203.02,202.99,1e-08]
[1753202307026,35.38,203.01,202.99,6.11251474]
[1753202307224,35.38,203.01,202.99,1e-08]
[1753202307445,4.92610837,203.0,202.99,1e-08]
[1753202308372,5.61610837,203.0,202.99,1e-08]
[1753202312479,15.39508166,203.0,202.99,1e-08]
[1753202313049,35.77897329,202.98,202.96,0.2]
[1753202313251,45.17897329,202.97,202.96,0.2]
[1753202313571,36.09,202.97,202.96,0.20000001]
[1753202314061,41.01683647,202.97,202.96,0.20000001]
[1753202315570,10.46897329,203.01,202.96,0.20000001]
[1753202315767,6.5828,203.07,203.0,9.77897329]
[1753202315972,35.4,203.06,203.03,9.77897329]
[1753202316151,40.32468715,203.06,203.03,9.77897329]
[1753202316756,35.4,203.06,203.03,9.77897329]
[1753202317377,35.4,203.06,203.03,10.23897329]
[1753202317561,35.4,203.06,203.03,9.77897329]
[1753202318480,40.32468904,203.06,203.03,9.77897329]
[1753202318771,40.32468904,203.06,203.02,9.77897329]
[1753202319150,40.32468904,203.06,203.03,9.77897329]
[1753202320480,35.4,203.06,203.03,9.77897329]
[1753202320670,35.4,203.06,203.04,9.77897329]
[1753202321050,35.4,203.06,203.04,98.37897329]
[1753202321276,35.4,203.06,203.05,10.23897329]
[1753202321479,35.4,203.06,203.05,98.83897329]
[1753202321958,4.98299065,203.13,203.05,98.83897329]
[1753202322160,35.38,203.12,203.08,9.77897329]
[1753202322561,40.30320922,203.12,203.05,123.50473204]
[1753202322758,40.99320922,203.12,203.08,9.77897329]
[1753202323276,35.38,203.12,203.1,9.77897329]
[1753202323658,35.38,203.12,203.11,9.77897329]
[1753202323867,0.06,203.13,203.11,9.77897329]
[1753202324067,35.38,203.12,203.11,9.77897329]
[1753202324273,35.38,203.12,203.11,10.23897329]
[1753202324475,0.06,203.13,203.11,39.75897329]
[1753202324674,0.06,203.13,203.12,45.1744912]
[1753202325764,0.06,203.13,203.12,9.77897329]
[1753202326269,0.06,203.13,203.12,39.29897329]
[1753202326459,0.06,203.13,203.12,44.68217139]
[1753202327290,0.06,203.13,203.12,41.00433431]
[1753202328375,0.06,203.13,203.12,181.76901828]
[1753202328576,0.06,203.18,203.17,4.92198651]
[1753202328778,0.06,203.18,203.17,11.51532137]
[1753202328957,0.06,203.18,203.17,57.82000534]
[1753202329162,0.06,203.18,203.17,61.93596624]
[1753202329364,0.06,203.18,203.17,150.53596624]
[1753202329561,0.06,203.18,203.17,150.04376759]
[1753202333263,0.06,203.18,203.17,185.40376759]
[1753202334682,0.06,203.18,203.17,150.04376759]
[1753202334882,0.06,203.18,203.17,185.40376759]
[1753202335073,0.06,203.18,203.17,150.04376759]
[1753202335271,0.06,203.18,203.17,185.40376759]
[1753202336789,0.06,203.18,203.17,185.38376759]
[1753202337290,0.06,203.23,203.22,88.48]
[1753202337506,0.06,203.23,203.22,98.23709711]
[1753202337695,0.76,203.23,203.22,88.48]
[1753202338226,0.76,203.23,203.18,9.75709711]
[1753202338388,0.76,203.23,203.18,88.6]
[1753202338583,0.76,203.23,203.18,98.35709711]
[1753202338784,0.06,203.23,203.21,9.75709711]
[1753202339012,0.06,203.23,203.22,9.75709711]
[1753202339689,0.76,203.23,203.22,9.75709711]
[1753202340004,0.06,203.23,203.22,9.75709711]
[1753202340211,0.06,203.23,203.22,98.35709711]
[1753202340385,0.06,203.23,203.22,104.22995017]
[1753202340714,0.06,203.23,203.22,185.38255659]
[1753202341609,0.06,203.23,203.22,184.92255659]
[1753202341791,1e-08,203.23,203.22,186.90685659]
[1753202342405,0.06,203.27,203.26,72.30468397]
[1753202342709,0.06,203.27,203.26,117.40178108]
[1753202343496,0.06,203.27,203.26,122.78158822]
[1753202343695,0.06,203.27,203.26,39.27709711]
[1753202343897,0.06,203.27,203.26,9.75709711]
[1753202344408,0.76,203.27,203.26,88.6]
[1753202344591,0.06,203.27,203.26,88.6]
[1753202345024,0.76,203.27,203.26,88.6]
[1753202346318,0.06,203.27,203.26,98.35709711]
[1753202346630,0.06,203.27,203.26,103.27690425]
[1753202346933,0.06,203.27,203.26,98.35709711]
[1753202347414,0.06,203.27,203.26,103.76888496]
[1753202347614,0.06,203.28,203.27,88.54]
[1753202347815,0.06,203.28,203.27,132.73666222]
[1753202348414,0.06,203.28,203.27,133.19666222]
[1753202348616,0.06,203.28,203.27,185.30134619]
[1753202350116,0.06,203.28,203.27,195.0584433]
[1753202350422,0.06,203.31,203.3,55.52]
[1753202350615,0.06,203.31,203.3,101.08898102]
[1753202350836,0.06,203.31,203.3,101.54898102]
[1753202351810,0.06,203.35,203.34,118.0]
[1753202352011,0.06,203.35,203.34,127.75709711]
[1753202352236,0.76,203.35,203.34,88.48]
[1753202353414,10.51709711,203.35,203.31,88.48]
[1753202353717,0.7,203.34,203.31,88.48]